[Event "GER-ch Youth U18w 2019"]
[Site "Willingen"]
[Date "2019.06.12"]
[Round "5.6"]
[White "Browning, Rebecca"]
[Black "Moeller, Lisa-Marie"]
[Result "0-1"]
[ECO "B22"]
[WhiteElo "1923"]
[BlackElo "1900"]
[Annotator "NA"]
[PlyCount "109"]
[EventDate "2019.06.07"]
[EventType "swiss"]
[EventRounds "9"]
[EventCountry "GER"]
[SourceTitle "playchess.com"]
[Source "ChessBase"]
[SourceQuality "1"]
[TimeControl "40/5400+30:1800+30"]

1. e4 {[%emt 0:00:00]} c5 {[%emt 0:00:00]} 2. c3 {[%emt 0:00:00]} Nf6 {[%emt 0:00:00]} 3. e5 {[%emt 0:00:00]} Nd5 {[%emt 0:00:00]} 4. d4 {[%emt 0:00:00]} cxd4 {[%emt 0:00:00]} 5. cxd4 {[%emt 0:00:02]} d6 {[%emt 0:00:36]} 6. exd6 {[%emt 0:01:32]} Qxd6 {[%emt 0:00:40]} 7. Nc3 {[%emt 0:01:42]} Nxc3 {[%emt 0:02:52]} 8. bxc3 {[%emt 0:00:04]} g6 {[%emt 0:01:48]} 9. Nf3 {[%emt 0:00:18]} Bg7 {[%emt 0:00:55]} 10. Bd3 {[%emt 0:01:34]} O-O {[%emt 0:01:39]} 11. O-O {[%emt 0:00:14]} Rd8 {[%emt 0:01:28]} 12. Qb3 {[%emt 0:04:48]} Nc6 {[%emt 0:04:37]} 13. Ba3 {[%emt 0:02:10]} Qc7 {[%emt 0:06:08]} 14. Be4 {[%emt 0:06:02]} Be6 {[%emt 0:07:46]} 15. Qb2 {[%emt 0:05:27]} Rac8 {[%emt 0:05:40]} 16. Bxc6 {[%emt 0:12:27]} bxc6 {[%emt 0:01:05]} 17. Qb4 {[%emt 0:01:42]} Bf6 {[%emt 0:03:17]} 18. Rfe1 {[%emt 0:07:47]} Rd5 {[%emt 0:06:00]} 19. Qb2 {[%emt 0:07:11]} Rb8 {[%emt 0:04:25]} 20. Qd2 {[%emt 0:00:26]} Rh5 {[%emt 0:10:20]} 21. g3 {[%emt 0:02:30]} Bg4 {[%emt 0:04:48]} 22. Qe3 {[%emt 0:04:57]} Qd7 {[%emt 0:02:32]} 23. Ne5 {[%emt 0:06:36]} Bxe5 {[%emt 0:06:04]} 24. dxe5 {[%emt 0:00:04]} Rf5 {[%emt 0:09:07]} 25. Qd4 {[%emt 0:02:41]} Qxd4 {[%emt 0:00:57]} 26. cxd4 {[%emt 0:00:04]} Rf3 {[%emt 0:01:17]} 27. Re3 {[%emt 0:04:34]} Kf8 {[%emt 0:01:42]} 28. Rc1 {[%emt 0:02:46]} Rxe3 {[%emt 0:00:48]} 29. fxe3 {[%emt 0:00:04]} Bf3 {[%emt 0:00:52]} 30. Ra1 {[%emt 0:09:39]} Rb5 {[%emt 0:04:27]} 31. Kf2 {[%emt 0:01:00]} Bd5 {[%emt 0:00:33]} 32. Bc1 {[%emt 0:00:10]} Ra5 {[%emt 0:01:41]} 33. a3 {[%emt 0:00:06]} Rb5 {[%emt 0:01:25]} 34. Ke1 {[%emt 0:00:50]} Ke8 {[%emt 0:02:52]} 35. Kd2 {[%emt 0:00:22]} Kd7 {[%emt 0:01:19]} 36. a4 {[%emt 0:01:31]} Rb7 {[%emt 0:02:28]} 37. Ra3 {[%emt 0:01:08]} Rb1 {[%emt 0:01:55]} 38. a5 {[%emt 0:01:51]} Ke6 {[%emt 0:01:22]} 39. Rc3 {[%emt 0:01:36]} Rb5 {[%emt 0:00:55]} 40. Ra3 {[%emt 0:00:06]} Kf5 {[%emt 0:01:13]} 41. Ke2 {[%emt 0:38:45]} Rb1 {[%emt 0:04:49]} 42. Bd2 {[%emt 0:00:00]} Kg4 {[%emt 0:04:18]} 43. h4 {[%emt 0:00:00]} Bc4+ {[%emt 0:01:05]} 44. Kf2 {[%emt 0:00:00]} Rb2 {[%emt 0:00:18]} 45. Ke1 {[%emt 0:00:00]} Kxg3 {[%emt 0:00:37]} 46. Rc3 {[%emt 0:00:00]} Bb5 {[%emt 0:02:43]} 47. e4+ {[%emt 0:00:00]} Kxh4 {[%emt 0:00:24]} 48. d5 {[%emt 0:00:00]} cxd5 {[%emt 0:02:11]} 49. exd5 {[%emt 0:00:00]} Rb1+ {[%emt 0:00:51]} 50. Kf2 {[%emt 0:00:00]} Rf1+ {[%emt 0:01:42]} 51. Kg2 {[%emt 0:00:00]} Rd1 {[%emt 0:00:36]} 52. Rc2 {[%emt 0:00:00]} Bd3 {[%emt 0:01:48]} 53. Rb2 {[%emt 0:00:00]} Be4+ {[%emt 0:00:18]} 54. Kf2 {[%emt 0:00:00]} Bxd5 {[%emt 0:00:39]} 55. Rb4+ {[%emt 0:00:00] normal} 0-1

[Event "GER-ch Youth U18w 2019"]
[Site "Willingen"]
[Date "2019.06.12"]
[Round "5.7"]
[White "Trams, Emma Joe"]
[Black "Reitz, Theresa"]
[Result "0-1"]
[ECO "B01"]
[WhiteElo "1418"]
[BlackElo "1976"]
[Annotator "NA"]
[PlyCount "86"]
[EventDate "2019.06.07"]
[EventType "swiss"]
[EventRounds "9"]
[EventCountry "GER"]
[SourceTitle "playchess.com"]
[Source "ChessBase"]
[SourceQuality "1"]
[TimeControl "40/5400+30:1800+30"]

1. e4 {[%emt 0:00:00]} d5 {[%emt 0:00:00]} 2. exd5 {[%emt 0:00:00]} Qxd5 {[%emt 0:00:00]} 3. Nc3 {[%emt 0:00:00]} Qd6 {[%emt 0:00:00]} 4. Bc4 {[%emt 0:00:36]} Nf6 {[%emt 0:01:05]} 5. Nf3 {[%emt 0:00:51]} a6 {[%emt 0:00:22]} 6. h3 {[%emt 0:00:58]} b5 {[%emt 0:00:42]} 7. Bb3 {[%emt 0:00:21]} Bb7 {[%emt 0:00:25]} 8. O-O {[%emt 0:00:47]} c5 {[%emt 0:03:38]} 9. d3 {[%emt 0:01:58]} e6 {[%emt 0:03:51]} 10. Re1 {[%emt 0:01:42]} Be7 {[%emt 0:01:26]} 11. a4 {[%emt 0:02:19]} b4 {[%emt 0:06:29]} 12. Nb1 {[%emt 0:01:42]} Nc6 {[%emt 0:02:15]} 13. Nbd2 {[%emt 0:02:08]} Nd4 {[%emt 0:01:53]} 14. Nxd4 {[%emt 0:01:13]} cxd4 {[%emt 0:00:12]} 15. Nf3 {[%emt 0:01:20]} O-O {[%emt 0:02:31]} 16. Bd2 {[%emt 0:02:46]} Rac8 {[%emt 0:09:27]} 17. Rc1 {[%emt 0:03:41]} Nd7 {[%emt 0:10:53]} 18. Ra1 {[%emt 0:03:21]} Bf6 {[%emt 0:00:25]} 19. Qe2 {[%emt 0:02:30]} a5 {[%emt 0:02:34]} 20. Ng5 {[%emt 0:05:28]} Qc6 {[%emt 0:04:32]} 21. Ne4 {[%emt 0:02:32]} Be7 {[%emt 0:13:06]} 22. f3 {[%emt 0:01:35]} Nb6 {[%emt 0:12:07]} 23. Qf2 {[%emt 0:03:54]} Qd7 {[%emt 0:11:13]} 24. Ng5 {[%emt 0:00:55]} Bd5 {[%emt 0:00:57]} 25. Bxd5 {[%emt 0:02:35]} Nxd5 {[%emt 0:03:31]} 26. Rec1 {[%emt 0:01:28]} Rc7 {[%emt 0:00:30]} 27. Ne4 {[%emt 0:02:16]} Rfc8 {[%emt 0:03:10]} 28. Be1 {[%emt 0:03:49]} Nb6 {[%emt 0:03:21]} 29. b3 {[%emt 0:01:08]} Nd5 {[%emt 0:00:19]} 30. Qe2 {[%emt 0:06:33]} f5 {[%emt 0:00:58]} 31. Nf2 {[%emt 0:02:49]} Bg5 {[%emt 0:00:09]} 32. Rd1 {[%emt 0:04:11]} Rxc2 {[%emt 0:00:22]} 33. Qe5 {[%emt 0:00:53]} Bf4 {[%emt 0:01:36]} 34. Qxd4 {[%emt 0:01:12]} e5 {[%emt 0:00:09]} 35. Qc4 {[%emt 0:01:39]} R8xc4 {[%emt 0:00:32]} 36. dxc4 {[%emt 0:00:27]} Qa7 {[%emt 0:01:02]} 37. Rxd5 {[%emt 0:03:17]} Be3 {[%emt 0:00:08]} 38. Rd8+ {[%emt 0:01:14]} Kf7 {[%emt 0:00:05]} 39. Rad1 {[%emt 0:00:54]} Bxf2+ {[%emt 0:00:13]} 40. Kf1 {[%emt 0:01:28]} Bd4 {[%emt 0:00:19]} 41. f4 {[%emt 0:31:02]} Qb7 {[%emt 0:30:53]} 42. Rd5 {[%emt 0:00:46]} Qe7 {[%emt 0:03:00]} 43. fxe5 {[%emt 0:00:51]} Qg5 {[%emt 0:00:23] normal} 0-1

[Event "GER-ch Youth U18w 2019"]
[Site "Willingen"]
[Date "2019.06.12"]
[Round "5.8"]
[White "Fock, Sana"]
[Black "Schiewe, Nadin"]
[Result "1-0"]
[ECO "B07"]
[WhiteElo "1796"]
[BlackElo "1608"]
[Annotator "NA"]
[PlyCount "43"]
[EventDate "2019.06.07"]
[EventType "swiss"]
[EventRounds "9"]
[EventCountry "GER"]
[SourceTitle "playchess.com"]
[Source "ChessBase"]
[SourceQuality "1"]
[TimeControl "40/5400+30:1800+30"]

1. e4 {[%emt 0:00:00]} d6 {[%emt 0:00:00]} 2. d4 {[%emt 0:00:00]} Nf6 {[%emt 0:00:00]} 3. Nc3 {[%emt 0:00:00]} g6 {[%emt 0:00:07]} 4. f3 {[%emt 0:00:29]} c6 {[%emt 0:00:48]} 5. Be3 {[%emt 0:00:20]} Nbd7 {[%emt 0:00:58]} 6. Qd2 {[%emt 0:01:41]} b5 {[%emt 0:01:53]} 7. h4 {[%emt 0:03:07]} h5 {[%emt 0:01:35]} 8. Nh3 {[%emt 0:01:20]} Bg7 {[%emt 0:03:17]} 9. Ng5 {[%emt 0:02:27]} Bb7 {[%emt 0:03:41]} 10. O-O-O {[%emt 0:07:59]} O-O {[%emt 0:07:26]} 11. Ne2 {[%emt 0:05:36]} a5 {[%emt 0:07:20]} 12. g4 {[%emt 0:10:40]} c5 {[%emt 0:10:00]} 13. Ng3 {[%emt 0:06:24]} hxg4 {[%emt 0:07:51]} 14. h5 {[%emt 0:01:48]} gxh5 {[%emt 0:02:20]} 15. Nxh5 {[%emt 0:00:56]} Nxh5 {[%emt 0:02:12]} 16. Rxh5 {[%emt 0:02:22]} Nf6 {[%emt 0:02:13]} 17. Qh2 {[%emt 0:09:40]} g3 {[%emt 0:08:26]} 18. Qh4 {[%emt 0:01:49]} Qc7 {[%emt 0:02:32]} 19. e5 {[%emt 0:07:53]} dxe5 {[%emt 0:00:31]} 20. dxe5 {[%emt 0:00:03]} Qxe5 {[%emt 0:00:58]} 21. Bf4 {[%emt 0:00:19]} Qf5 {[%emt 0:04:36]} 22. Bd3 {[%emt 0:00:46] normal} 1-0

[Event "GER-ch Youth U18w 2019"]
[Site "Willingen"]
[Date "2019.06.12"]
[Round "5.9"]
[White "Alferova, Ekaterina"]
[Black "Fuchs, Emily"]
[Result "1/2-1/2"]
[ECO "A45"]
[WhiteElo "1597"]
[BlackElo "1384"]
[Annotator "NA"]
[PlyCount "130"]
[EventDate "2019.06.07"]
[EventType "swiss"]
[EventRounds "9"]
[EventCountry "GER"]
[SourceTitle "playchess.com"]
[Source "ChessBase"]
[SourceQuality "1"]
[TimeControl "40/5400+30:1800+30"]

1. d4 {[%emt 0:00:00]} Nf6 {[%emt 0:00:00]} 2. Bf4 {[%emt 0:00:00]} e6 {[%emt 0:00:00]} 3. e3 {[%emt 0:00:00]} c5 {[%emt 0:00:00]} 4. c3 {[%emt 0:00:00]} b6 {[%emt 0:00:03]} 5. Nf3 {[%emt 0:00:00]} Bb7 {[%emt 0:00:11]} 6. h3 {[%emt 0:00:01]} Nc6 {[%emt 0:00:13]} 7. Bd3 {[%emt 0:00:17]} Be7 {[%emt 0:00:14]} 8. Nbd2 {[%emt 0:00:24]} d5 {[%emt 0:00:57]} 9. O-O {[%emt 0:00:15]} O-O {[%emt 0:00:12]} 10. Re1 {[%emt 0:01:04]} cxd4 {[%emt 0:02:39]} 11. exd4 {[%emt 0:01:12]} a5 {[%emt 0:02:30]} 12. Qe2 {[%emt 0:06:26]} Qc8 {[%emt 0:09:41]} 13. Ne5 {[%emt 0:23:08]} Nxe5 {[%emt 0:05:18]} 14. dxe5 {[%emt 0:01:35]} Nd7 {[%emt 0:12:58]} 15. Qg4 {[%emt 0:00:36]} Re8 {[%emt 0:03:21]} 16. Re3 {[%emt 0:02:00]} Bf8 {[%emt 0:06:42]} 17. Qh4 {[%emt 0:04:09]} g6 {[%emt 0:02:36]} 18. Nf3 {[%emt 0:03:01]} Bg7 {[%emt 0:06:01]} 19. Ng5 {[%emt 0:01:15]} Nf8 {[%emt 0:03:46]} 20. Rg3 {[%emt 0:13:18]} h6 {[%emt 0:09:02]} 21. Nf3 {[%emt 0:08:19]} Qd8 {[%emt 0:01:44]} 22. Qg4 {[%emt 0:02:03]} h5 {[%emt 0:01:28]} 23. Qh4 {[%emt 0:06:29]} Qxh4 {[%emt 0:01:43]} 24. Nxh4 {[%emt 0:00:05]} Ba6 {[%emt 0:04:55]} 25. Re1 {[%emt 0:03:12]} Nd7 {[%emt 0:02:10]} 26. Bxa6 {[%emt 0:00:50]} Rxa6 {[%emt 0:00:20]} 27. Nf3 {[%emt 0:01:03]} b5 {[%emt 0:06:23]} 28. a3 {[%emt 0:02:03]} Rb8 {[%emt 0:02:03]} 29. Bd2 {[%emt 0:04:26]} Nc5 {[%emt 0:01:07]} 30. Nd4 {[%emt 0:07:44]} Ne4 {[%emt 0:01:15]} 31. Rd3 {[%emt 0:00:46]} Bxe5 {[%emt 0:00:47]} 32. Be3 {[%emt 0:02:37]} b4 {[%emt 0:07:12]} 33. axb4 {[%emt 0:01:40]} axb4 {[%emt 0:00:11]} 34. Nf3 {[%emt 0:02:23]} Bg7 {[%emt 0:01:54]} 35. Bd4 {[%emt 0:01:43]} bxc3 {[%emt 0:01:12]} 36. bxc3 {[%emt 0:02:07]} Ra3 {[%emt 0:01:17]} 37. Rc1 {[%emt 0:00:33]} Rc8 {[%emt 0:00:34]} 38. Ne5 {[%emt 0:00:48]} Bxe5 {[%emt 0:04:07]} 39. Bxe5 {[%emt 0:00:18]} f6 {[%emt 0:00:24]} 40. Bd4 {[%emt 0:01:03]} e5 {[%emt 0:00:58]} 41. f3 {[%emt 0:30:46]} exd4 {[%emt 0:01:59]} 42. fxe4 {[%emt 0:00:00]} dxe4 {[%emt 0:03:43]} 43. Rxd4 {[%emt 0:00:00]} Raxc3 {[%emt 0:01:05]} 44. Rxc3 {[%emt 0:00:00]} Rxc3 {[%emt 0:00:05]} 45. Rxe4 {[%emt 0:00:00]} Kf7 {[%emt 0:00:23]} 46. Kf2 {[%emt 0:00:00]} f5 {[%emt 0:04:59]} 47. Rb4 {[%emt 0:00:00]} Rc5 {[%emt 0:06:22]} 48. Kf3 {[%emt 0:00:00]} g5 {[%emt 0:00:57]} 49. Rb6 {[%emt 0:00:00]} Re5 {[%emt 0:05:54]} 50. Rh6 {[%emt 0:00:00]} h4 {[%emt 0:01:24]} 51. Rb6 {[%emt 0:00:00]} Re6 {[%emt 0:01:11]} 52. Rb5 {[%emt 0:00:00]} Kg6 {[%emt 0:00:35]} 53. Rd5 {[%emt 0:00:00]} Rb6 {[%emt 0:01:40]} 54. Rc5 {[%emt 0:00:00]} Rb3+ {[%emt 0:00:44]} 55. Kf2 {[%emt 0:00:00]} Rg3 {[%emt 0:01:08]} 56. Rc6+ {[%emt 0:00:00]} Kf7 {[%emt 0:00:13]} 57. Rd6 {[%emt 0:00:00]} f4 {[%emt 0:00:58]} 58. Rb6 {[%emt 0:00:00]} Kg7 {[%emt 0:01:38]} 59. Re6 {[%emt 0:00:00]} f3 {[%emt 0:02:05]} 60. Re3 {[%emt 0:00:00]} Rxg2+ {[%emt 0:02:38]} 61. Kxf3 {[%emt 0:00:00]} Rh2 {[%emt 0:01:16]} 62. Ke4 {[%emt 0:00:41]} Kg6 {[%emt 0:00:22] normal} 63. Ke5 {[%emt 0:04:09]} Kh5 {[%emt 0:01:04] normal} 64. Rf3 {[%emt 0:01:10] normal} Re2+ {[%emt 0:00:25]} 65. Kf6 {[%emt 0:01:24]} Ra2 {[%emt 0:00:38] normal} 1/2-1/2

[Event "GER-ch Youth U18w 2019"]
[Site "Willingen"]
[Date "2019.06.12"]
[Round "5.10"]
[White "Kadach, Maria"]
[Black "Tampe, Friederike"]
[Result "0-1"]
[ECO "D02"]
[WhiteElo "1448"]
[BlackElo "1512"]
[Annotator "NA"]
[PlyCount "147"]
[EventDate "2019.06.07"]
[EventType "swiss"]
[EventRounds "9"]
[EventCountry "GER"]
[SourceTitle "playchess.com"]
[Source "ChessBase"]
[SourceQuality "1"]
[TimeControl "40/5400+30:1800+30"]

1. d4 {[%emt 0:00:00]} d5 {[%emt 0:00:00]} 2. Nf3 {[%emt 0:00:00]} Nf6 {[%emt 0:00:00]} 3. Bf4 {[%emt 0:00:00]} e6 {[%emt 0:00:00]} 4. e3 {[%emt 0:00:00]} Bd6 {[%emt 0:00:03]} 5. Bg3 {[%emt 0:00:08]} O-O {[%emt 0:00:14]} 6. Nbd2 {[%emt 0:00:27]} c5 {[%emt 0:00:13]} 7. c3 {[%emt 0:00:18]} Nc6 {[%emt 0:00:23]} 8. Bd3 {[%emt 0:00:44]} b6 {[%emt 0:00:15]} 9. Qb1 {[%emt 0:05:04]} Bb7 {[%emt 0:08:44]} 10. O-O {[%emt 0:13:02]} Re8 {[%emt 0:03:37]} 11. Ne5 {[%emt 0:09:50]} Ne7 {[%emt 0:15:31]} 12. f4 {[%emt 0:04:18]} g6 {[%emt 0:03:09]} 13. Be2 {[%emt 0:03:07]} Nf5 {[%emt 0:01:50]} 14. Bf2 {[%emt 0:00:42]} Be7 {[%emt 0:00:52]} 15. g4 {[%emt 0:07:23]} Nd6 {[%emt 0:00:37]} 16. g5 {[%emt 0:02:19]} Nfe4 {[%emt 0:00:18]} 17. Nxe4 {[%emt 0:01:06]} Nxe4 {[%emt 0:00:56]} 18. Qe1 {[%emt 0:00:53]} c4 {[%emt 0:02:11]} 19. h4 {[%emt 0:02:02]} b5 {[%emt 0:01:38]} 20. h5 {[%emt 0:05:51]} Bf8 {[%emt 0:00:49]} 21. hxg6 {[%emt 0:04:22]} hxg6 {[%emt 0:00:14]} 22. Bh4 {[%emt 0:08:07]} Bg7 {[%emt 0:02:48]} 23. Ng4 {[%emt 0:05:58]} Kf8 {[%emt 0:06:19]} 24. Kg2 {[%emt 0:01:56]} Ke7 {[%emt 0:02:01]} 25. Bf3 {[%emt 0:01:59]} Nd6 {[%emt 0:03:44]} 26. Rh1 {[%emt 0:02:48]} Rh8 {[%emt 0:07:39]} 27. Nf6 {[%emt 0:02:15]} Qb6 {[%emt 0:13:37]} 28. Rh2 {[%emt 0:02:45]} a5 {[%emt 0:00:49]} 29. Qe2 {[%emt 0:01:54]} b4 {[%emt 0:01:40]} 30. Rah1 {[%emt 0:01:24]} bxc3 {[%emt 0:00:37]} 31. bxc3 {[%emt 0:00:07]} Bc6 {[%emt 0:03:29]} 32. Bg3 {[%emt 0:05:07]} Rxh2+ {[%emt 0:01:42]} 33. Rxh2 {[%emt 0:00:05]} Bxf6 {[%emt 0:03:20]} 34. gxf6+ {[%emt 0:00:05]} Kxf6 {[%emt 0:00:04]} 35. Bh4+ {[%emt 0:00:08]} Kg7 {[%emt 0:00:11]} 36. Qf2 {[%emt 0:02:11]} Nf5 {[%emt 0:06:47]} 37. Qg1 {[%emt 0:09:10]} Nxh4+ {[%emt 0:01:53]} 38. Rxh4 {[%emt 0:00:06]} Rh8 {[%emt 0:00:51]} 39. Rxh8 {[%emt 0:00:49]} Kxh8 {[%emt 0:00:05]} 40. Qc1 {[%emt 0:00:14]} Kg7 {[%emt 0:02:58]} 41. Kg3 {[%emt 0:07:23]} Qb8 {[%emt 0:08:51]} 42. Kg2 {[%emt 0:03:10]} a4 {[%emt 0:03:44]} 43. Bd1 {[%emt 0:03:22]} Kf6 {[%emt 0:03:29]} 44. a3 {[%emt 0:03:22]} Kg7 {[%emt 0:02:48]} 45. Bc2 {[%emt 0:02:51]} f6 {[%emt 0:01:47]} 46. Qb1 {[%emt 0:06:10]} Qd6 {[%emt 0:06:14]} 47. Qb4 {[%emt 0:02:12]} Qxb4 {[%emt 0:00:15]} 48. cxb4 {[%emt 0:00:08]} Bb5 {[%emt 0:00:30]} 49. Kg3 {[%emt 0:00:39]} Kf7 {[%emt 0:02:20]} 50. Kg4 {[%emt 0:01:20]} Bd7 {[%emt 0:04:55]} 51. Kh4 {[%emt 0:00:28]} e5 {[%emt 0:00:51]} 52. fxe5 {[%emt 0:00:24]} fxe5 {[%emt 0:00:08]} 53. Kg5 {[%emt 0:02:06]} e4 {[%emt 0:03:40]} 54. Bd1 {[%emt 0:00:50]} Be8 {[%emt 0:00:08]} 55. Bc2 {[%emt 0:00:29]} Ke6 {[%emt 0:00:08]} 56. Bd1 {[%emt 0:00:12]} Kd6 {[%emt 0:00:03]} 57. Bc2 {[%emt 0:00:37]} Kc7 {[%emt 0:00:01]} 58. Bd1 {[%emt 0:00:06]} Kb6 {[%emt 0:00:08]} 59. Kf6 {[%emt 0:00:31]} c3 {[%emt 0:01:43]} 60. Kg5 {[%emt 0:00:37]} c2 {[%emt 0:00:37]} 61. Bxc2 {[%emt 0:00:12]} Kb5 62. Bb1 {[%emt 0:00:37]} Kc4 {[%emt 0:00:24]} 63. Ba2+ {[%emt 0:00:15]} Kd3 64. Kf4 {[%emt 0:01:05]} g5+ {[%emt 0:00:36]} 65. Kxg5 {[%emt 0:00:22]} Kxe3 {[%emt 0:00:12]} 66. Bxd5 {[%emt 0:00:19]} Kxd4 {[%emt 0:00:27]} 67. Be6 {[%emt 0:01:37]} e3 {[%emt 0:00:20]} 68. Bg4 {[%emt 0:00:55]} Bb5 {[%emt 0:00:05]} 69. Kf4 {[%emt 0:00:35]} e2 {[%emt 0:00:10]} 70. Bxe2 {[%emt 0:00:27]} Bxe2 {[%emt 0:00:05]} 71. Kg3 {[%emt 0:00:08]} Kc3 {[%emt 0:00:08]} 72. Kf2 {[%emt 0:00:11]} Bb5 {[%emt 0:00:26]} 73. Ke1 {[%emt 0:00:11]} Kb2 74. Kd2 {[%emt 0:00:35] normal} 0-1

[Event "GER-ch Youth U18w 2019"]
[Site "Willingen"]
[Date "2019.06.12"]
[Round "5.11"]
[White "Kuemmel, Tina"]
[Black "Mundt, Alexandra"]
[Result "1/2-1/2"]
[ECO "A51"]
[WhiteElo "1446"]
[BlackElo "1797"]
[Annotator "NA"]
[PlyCount "67"]
[EventDate "2019.06.07"]
[EventType "swiss"]
[EventRounds "9"]
[EventCountry "GER"]
[SourceTitle "playchess.com"]
[Source "ChessBase"]
[SourceQuality "1"]
[TimeControl "40/5400+30:1800+30"]

1. d4 {[%emt 0:00:00]} Nf6 {[%emt 0:00:00]} 2. c4 {[%emt 0:00:00]} e5 3. d5 Bb4+ {[%emt 0:00:44]} 4. Bd2 {[%emt 0:04:10]} Bxd2+ {[%emt 0:00:24]} 5. Qxd2 {[%emt 0:01:25]} d6 {[%emt 0:00:07]} 6. Nc3 {[%emt 0:00:33]} a5 {[%emt 0:01:45]} 7. e3 {[%emt 0:02:30]} Bf5 {[%emt 0:06:06]} 8. Nf3 h6 9. Bd3 {[%emt 0:08:26]} Bxd3 {[%emt 0:04:25]} 10. Qxd3 {[%emt 0:00:07]} Nbd7 {[%emt 0:00:33]} 11. O-O {[%emt 0:05:04]} Nc5 {[%emt 0:04:32]} 12. Qc2 {[%emt 0:09:06]} O-O {[%emt 0:00:49]} 13. a3 {[%emt 0:03:03]} a4 {[%emt 0:04:31]} 14. Rad1 {[%emt 0:08:28]} Qd7 15. Ne2 Rfb8 {[%emt 0:14:40]} 16. Nc3 {[%emt 0:07:13]} Rf8 {[%emt 0:12:13]} 17. Nd2 {[%emt 0:07:05]} Qg4 {[%emt 0:17:52]} 18. h3 {[%emt 0:01:15]} Qg6 {[%emt 0:05:13]} 19. Qxg6 {[%emt 0:01:21]} fxg6 20. Nf3 Nfe4 {[%emt 0:08:13]} 21. Nb5 {[%emt 0:13:44]} Rf7 {[%emt 0:06:03]} 22. Nd2 {[%emt 0:01:42]} Rd7 23. Nxe4 {[%emt 0:05:20]} Nxe4 {[%emt 0:00:36]} 24. Rd3 {[%emt 0:00:21]} Nc5 {[%emt 0:01:55]} 25. Rdd1 {[%emt 0:04:17]} Rad8 {[%emt 0:02:26]} 26. f4 {[%emt 0:03:42]} exf4 27. exf4 {[%emt 0:00:07]} Re7 {[%emt 0:03:33]} 28. Rfe1 {[%emt 0:06:57]} Rde8 {[%emt 0:00:26]} 29. Rxe7 {[%emt 0:03:22]} Rxe7 {[%emt 0:00:06]} 30. Nc3 {[%emt 0:00:04]} Kf7 {[%emt 0:00:57]} 31. g3 {[%emt 0:02:08]} Ke8 {[%emt 0:01:54]} 32. Kg2 Kd7 {[%emt 0:00:26]} 33. Kf3 {[%emt 0:01:40]} Re8 {[%emt 0:01:59]} 34. h4 {[%emt 0:02:00] normal} 1/2-1/2

[Event "GER-ch Youth U18w 2019"]
[Site "Willingen"]
[Date "2019.06.12"]
[Round "5.12"]
[White "Gauchel, Verena"]
[Black "Schneider, Xenia"]
[Result "1-0"]
[ECO "D10"]
[WhiteElo "1534"]
[BlackElo "1364"]
[Annotator "NA"]
[PlyCount "85"]
[EventDate "2019.06.07"]
[EventType "swiss"]
[EventRounds "9"]
[EventCountry "GER"]
[SourceTitle "playchess.com"]
[Source "ChessBase"]
[SourceQuality "1"]
[TimeControl "40/5400+30:1800+30"]

1. d4 {[%emt 0:00:00]} c6 2. c4 {[%emt 0:00:00]} d5 {[%emt 0:00:00]} 3. cxd5 {[%emt 0:00:00]} cxd5 {[%emt 0:00:00]} 4. Nf3 {[%emt 0:00:00]} Bf5 {[%emt 0:00:31]} 5. Nc3 {[%emt 0:01:37]} e6 {[%emt 0:01:39]} 6. Bf4 {[%emt 0:05:08]} Bd6 {[%emt 0:02:20]} 7. Bg3 {[%emt 0:00:46]} Nc6 {[%emt 0:01:32]} 8. Qb3 {[%emt 0:03:47]} Bxg3 {[%emt 0:07:21]} 9. hxg3 {[%emt 0:00:19]} Rb8 {[%emt 0:03:54]} 10. e3 {[%emt 0:01:33]} Nge7 {[%emt 0:02:34]} 11. Be2 {[%emt 0:02:18]} O-O {[%emt 0:02:04]} 12. Nh4 {[%emt 0:03:00]} h6 {[%emt 0:03:09]} 13. Nxf5 {[%emt 0:01:20]} Nxf5 {[%emt 0:00:07]} 14. a3 {[%emt 0:03:50]} Qg5 {[%emt 0:01:55]} 15. Rh5 {[%emt 0:09:21]} Qf6 {[%emt 0:01:26]} 16. Qc2 {[%emt 0:04:29]} Nd6 {[%emt 0:06:29]} 17. Bd3 {[%emt 0:06:58]} Ne7 {[%emt 0:04:47]} 18. Ke2 {[%emt 0:09:31]} Rfc8 19. Rah1 {[%emt 0:04:48]} Kf8 {[%emt 0:19:24]} 20. g4 {[%emt 0:02:13]} Ng6 21. Qb1 {[%emt 0:07:52]} Nc4 {[%emt 0:06:00]} 22. g3 {[%emt 0:03:54]} Ne7 {[%emt 0:11:10]} 23. f4 {[%emt 0:01:16]} Ng8 {[%emt 0:00:10]} 24. g5 {[%emt 0:03:29]} hxg5 {[%emt 0:00:13]} 25. fxg5 {[%emt 0:02:10]} Qd8 {[%emt 0:00:11]} 26. Rf1 {[%emt 0:02:12]} Nxa3 {[%emt 0:06:28]} 27. bxa3 {[%emt 0:00:53]} Qa5 {[%emt 0:01:53]} 28. Nb5 {[%emt 0:02:41]} Rc6 {[%emt 0:02:27]} 29. Qb4+ {[%emt 0:01:56]} Qxb4 {[%emt 0:00:06]} 30. axb4 {[%emt 0:00:02]} a6 {[%emt 0:00:26]} 31. Na3 {[%emt 0:00:22]} Ke7 {[%emt 0:00:56]} 32. Rh8 {[%emt 0:01:45]} Rc3 {[%emt 0:01:44]} 33. Nb1 {[%emt 0:00:44]} Rcc8 {[%emt 0:03:04]} 34. Kd2 {[%emt 0:04:21]} Rf8 {[%emt 0:00:11]} 35. Rh7 {[%emt 0:00:57]} g6 {[%emt 0:00:33]} 36. Bxg6 {[%emt 0:00:25]} Kd6 {[%emt 0:00:31]} 37. Rfxf7 {[%emt 0:00:56]} Rxf7 {[%emt 0:00:32]} 38. Bxf7 {[%emt 0:00:43]} b5 {[%emt 0:01:23]} 39. Rh8 {[%emt 0:00:34]} e5 {[%emt 0:01:52]} 40. dxe5+ {[%emt 0:00:34]} Kxe5 {[%emt 0:00:07]} 41. Rxg8 {[%emt 0:30:11]} Rb7 {[%emt 0:31:02]} 42. Bg6 {[%emt 0:00:37]} Re7 {[%emt 0:00:34]} 43. Re8 {[%emt 0:00:11] normal} 1-0

[Event "GER-ch Youth U18w 2019"]
[Site "Willingen"]
[Date "2019.06.12"]
[Round "5.13"]
[White "Peters, Jenna Maria Lara"]
[Black "Gesell, Patricia"]
[Result "1-0"]
[ECO "B21"]
[WhiteElo "1594"]
[BlackElo "1046"]
[Annotator "NA"]
[PlyCount "40"]
[EventDate "2019.06.07"]
[EventType "swiss"]
[EventRounds "9"]
[EventCountry "GER"]
[SourceTitle "playchess.com"]
[Source "ChessBase"]
[SourceQuality "1"]
[TimeControl "40/5400+30:1800+30"]

1. e4 {[%emt 0:00:00]} c5 {[%emt 0:00:00]} 2. d4 {[%emt 0:00:00]} cxd4 {[%emt 0:00:54]} 3. c3 dxc3 {[%emt 0:02:22]} 4. Nxc3 {[%emt 0:00:13]} d6 {[%emt 0:02:18]} 5. Nf3 {[%emt 0:00:30]} Nc6 {[%emt 0:02:57]} 6. Bb5 {[%emt 0:00:30]} Bd7 {[%emt 0:01:26]} 7. O-O {[%emt 0:00:32]} Nf6 {[%emt 0:01:24]} 8. Bg5 {[%emt 0:01:29]} Qb6 {[%emt 0:05:10]} 9. Qd2 {[%emt 0:07:29]} O-O-O {[%emt 0:07:28]} 10. Rfc1 Nxe4 {[%emt 0:10:15]} 11. Nxe4 {[%emt 0:23:45]} Qxb5 {[%emt 0:01:54]} 12. Be3 {[%emt 0:02:29]} Kb8 13. Nd4 {[%emt 0:05:31]} Nxd4 {[%emt 0:04:52]} 14. Qxd4 b6 {[%emt 0:06:52]} 15. a4 {[%emt 0:06:02]} Qe5 {[%emt 0:09:43]} 16. Qd3 {[%emt 0:09:41]} Bf5 17. Qa6 {[%emt 0:01:43]} d5 {[%emt 0:10:07]} 18. Bxb6 axb6 {[%emt 0:03:12]} 19. Qxb6+ {[%emt 0:02:45]} Ka8 {[%emt 0:00:12]} 20. Qxd8+ {[%emt 0:00:18]} Qb8 {[%emt 0:01:00] normal} 1-0